bitfinex-derivatives/quotes_SOLF0:USTF0_20250321
["timestamp","ask_amount","ask_price","bid_price","bid_amount"]
[1742520250363,0.05145717,128.19,128.16,11.33420131]
[1742520251167,7.8071,128.17,128.15,11.33420131]
[1742520251356,28.08,128.18,128.15,11.33420131]
[1742520251955,7.8071,128.17,128.15,11.33420131]
[1742520252359,28.08,128.18,128.15,11.33420131]
[1742520252559,7.8072,128.16,128.15,11.33420131]
[1742520252758,39.41420131,128.18,128.13,276.54300131]
[1742520253059,39.41420131,128.18,128.13,268.73420131]
[1742520253060,7.8082,128.15,128.13,268.73420131]
[1742520253453,7.8082,128.15,128.13,276.54320131]
[1742520253868,0.05622938,128.17,128.13,268.73420131]
[1742520254069,0.05622938,128.17,128.13,11.33420131]
[1742520254677,7.8073,128.16,128.13,11.33420131]
[1742520256070,7.8073,128.16,128.13,19.14320131]
[1742520257573,0.05622938,128.17,128.14,11.33420131]
[1742520257769,0.05622938,128.17,128.15,11.33420131]
[1742520257968,0.05622938,128.17,128.15,19.14170131]
[1742520258666,7.86282938,128.17,128.15,19.14170131]
[1742520258872,0.05622938,128.17,128.15,19.14170131]
[1742520259669,7.86322938,128.17,128.15,11.33420131]
[1742520259973,7.86322938,128.17,128.14,19.14240131]
[1742520260768,0.05622938,128.17,128.14,19.14240131]
[1742520261262,7.86312938,128.17,128.14,19.14240131]
[1742520261777,7.86312938,128.17,128.15,7.8078]
[1742520262263,0.05622938,128.17,128.15,7.8078]
[1742520263273,7.86292938,128.17,128.15,7.8078]
[1742520265463,0.05622938,128.17,128.15,7.8078]
[1742520266474,7.86292938,128.17,128.15,7.8078]
[1742520267375,0.05622938,128.17,128.15,7.8078]
[1742520269076,7.86282938,128.17,128.15,7.8078]
[1742520270972,7.86282938,128.17,128.14,11.33420131]
[1742520271177,7.86282938,128.17,128.14,19.14210131]
[1742520274082,0.05622938,128.17,128.1,10.7411837]
[1742520274284,11.39043069,128.17,128.1,38.6011837]
[1742520274480,11.39043069,128.17,128.11,11.33420131]
[1742520275675,7.8096,128.13,128.11,11.33420131]
[1742520275876,39.29420131,128.15,128.11,11.33420131]
[1742520276078,0.05563354,128.13,128.11,11.33420131]
[1742520276381,7.8097,128.12,128.11,11.33420131]
[1742520276772,7.86513354,128.13,128.11,11.33420131]
[1742520277786,0.05563354,128.13,128.11,19.14440131]
[1742520279484,0.05563354,128.13,128.12,7.8097]
[1742520280374,0.05563354,128.13,128.11,11.33420131]
[1742520280989,0.05563354,128.13,128.12,19.14390131]
[1742520284785,27.92,128.18,128.16,7.8071]
[1742520285491,2.1194,128.19,128.17,7.8066]
[1742520285683,27.92,128.19,128.17,7.8066]
[1742520285890,0.05376015,128.19,128.17,7.85697115]
[1742520286087,0.05376015,128.19,128.18,7.806]
[1742520286594,0.05376015,128.19,128.17,7.85667115]
[1742520287591,0.05376015,128.19,128.18,7.806]
[1742520292591,0.05376015,128.19,128.17,19.19087246]
[1742520293299,0.05376015,128.19,128.18,7.806]
[1742520300301,0.05376015,128.19,128.18,19.14020131]
[1742520303204,0.05376015,128.19,128.18,7.806]
[1742520303603,0.05376015,128.19,128.18,19.14020131]
[1742520304005,0.05376015,128.19,128.18,46.98020131]
[1742520308203,0.05376015,128.19,128.18,39.17420131]
[1742520308708,0.05376015,128.19,128.18,11.33420131]
[1742520309312,7.85916015,128.19,128.18,11.33420131]
[1742520309612,7.85916015,128.19,128.17,19.19087246]
[1742520310006,7.85916015,128.19,128.17,11.38457246]
[1742520310317,7.806,128.18,128.17,11.38457246]
[1742520311915,7.85956015,128.19,128.17,11.38457246]
[1742520312218,0.05376015,128.19,128.17,0.05037115]
[1742520313718,7.806,128.18,128.17,0.05037115]
[1742520321129,19.14020131,128.18,128.17,0.05037115]
[1742520321327,7.8082,128.15,128.13,11.33420131]
[1742520321527,7.8082,128.15,128.12,11.33420131]
[1742520321833,7.8082,128.15,128.12,19.14360131]
[1742520322429,7.8085,128.14,128.12,19.16608126]
[1742520322630,7.8085,128.14,128.13,11.33420131]
[1742520326137,7.86723515,128.15,128.13,11.33420131]
[1742520326338,11.39333646,128.15,128.12,0.02247995]
[1742520326536,19.14330131,128.13,128.12,0.02247995]
[1742520326936,46.90330131,128.13,128.12,0.02247995]
[1742520327136,48.95750131,128.13,128.12,0.02247995]
[1742520327735,35.5691,128.13,128.12,0.02247995]
[1742520330838,27.76,128.13,128.12,0.02247995]
[1742520332143,9.9982,128.14,128.12,0.02247995]
[1742520332745,7.8091,128.13,128.12,0.02247995]
[1742520333342,9.9981,128.14,128.12,0.02247995]
[1742520334048,7.8091,128.13,128.12,0.02247995]
[1742520335536,19.14330131,128.13,128.12,0.02247995]
[1742520335742,7.8091,128.13,128.12,0.02247995]
[1742520338344,11.33420131,128.13,128.07,7.8123]
[1742520338545,11.33420131,128.11,128.07,7.8123]
[1742520338954,11.33420131,128.11,128.06,268.89420131]
[1742520338955,7.8118,128.09,128.06,268.89420131]
[1742520339551,7.8121,128.08,128.06,268.89420131]
[1742520339853,7.8121,128.08,128.06,257.56]
[1742520340154,7.8127,128.07,128.04,11.33420131]
[1742520340549,7.8124,128.08,128.04,11.33420131]
[1742520341051,39.14833832,128.09,128.04,11.33420131]
[1742520341357,7.8124,128.08,128.04,19.14870131]
[1742520342654,7.8129,128.07,128.04,19.14870131]
[1742520344356,7.8129,128.07,128.05,7.8139]
[1742520344759,39.14833832,128.09,128.05,7.8139]
[1742520344760,7.8124,128.08,128.05,7.8139]
[1742520348065,7.8129,128.07,128.04,19.14860131]
[1742520348662,7.8134,128.06,128.04,19.14860131]
[1742520348858,7.8134,128.06,128.03,7.8149]
[1742520349060,7.86494684,128.06,128.03,7.8149]
[1742520349261,35.60494684,128.06,128.03,7.8149]
[1742520350367,7.8143,128.05,128.02,19.14970131]
[1742520350566,7.8143,128.05,128.02,11.33420131]
[1742520350866,7.8143,128.05,128.02,7.8156]
[1742520351167,7.8143,128.05,128.02,19.14980131]
[1742520351363,27.79154684,128.06,128.03,11.33420131]
[1742520351364,35.60514684,128.06,128.03,11.33420131]
[1742520351560,35.60514684,128.06,128.03,19.14890131]
[1742520352065,35.60514684,128.06,128.03,11.33420131]
[1742520352267,27.79154684,128.06,128.04,11.33420131]
[1742520353566,27.79154684,128.06,128.05,7.8139]
[1742520354167,27.79154684,128.06,128.03,11.33420131]
[1742520354871,27.79154684,128.06,128.04,7.8145]
[1742520355164,27.79154684,128.06,128.01,257.66]
[1742520355470,27.79154684,128.06,128.02,19.14970131]
[1742520355471,46.93934815,128.06,128.02,19.14970131]
[1742520355768,27.76,128.05,128.02,19.14970131]
[1742520355967,35.574,128.05,128.02,7.8155]
[1742520356170,27.76,128.05,128.03,7.8151]
[1742520356368,27.76,128.05,128.02,11.33420131]
[1742520357072,27.76,128.05,128.04,7.8145]
[1742520359570,35.5739,128.05,128.02,11.33420131]
[1742520359768,27.76,128.05,128.02,11.33420131]
[1742520360166,27.76,128.05,128.04,7.8145]
[1742520361178,27.76,128.05,128.03,19.14910131]
[1742520361375,0.05154684,128.06,128.02,11.33420131]
[1742520361569,35.66514684,128.06,128.04,7.8145]
[1742520363170,35.66514684,128.06,128.03,7.8148]
[1742520363676,35.66514684,128.06,128.02,11.33420131]
[1742520363870,35.66514684,128.06,128.03,7.815]
[1742520364367,39.18574815,128.06,128.01,276.81040131]
[1742520364766,7.8147,128.04,128.01,276.81040131]
[1742520366572,7.8147,128.04,128.01,265.4762]
[1742520367475,7.8152,128.03,128.01,265.4762]
[1742520367974,7.8724289,128.03,128.01,265.4762]
[1742520368569,0.0572289,128.03,128.02,7.8158]
[1742520368969,0.0572289,128.03,128.01,257.66]
[1742520369778,0.0572289,128.03,128.01,265.4759]
[1742520370274,0.0572289,128.03,128.01,257.66]
[1742520370679,7.8727289,128.03,128.01,265.4763]
[1742520372281,7.8727289,128.03,128.01,7.8163]
[1742520376080,0.0572289,128.03,128.02,7.8158]
[1742520377185,0.0572289,128.03,128.02,19.15000131]
[1742520377485,0.0572289,128.03,128.02,7.8158]
[1742520379981,0.0572289,128.03,128.02,35.5558]
[1742520380282,0.0572289,128.03,128.02,46.89000131]
[1742520393698,2.89e-05,128.03,128.02,46.89000131]
[1742520394900,41.15380131,128.1,128.08,7.8117]
[1742520395401,48.96470131,128.1,128.08,7.8117]
[1742520395603,41.15380131,128.1,128.08,7.8117]
[1742520396098,49.01995762,128.1,128.08,7.8628235]
[1742520397302,49.01995762,128.1,128.08,0.0511235]
[1742520397801,21.35995762,128.1,128.08,0.0511235]
[1742520398300,7.8115,128.09,128.08,0.0511235]
[1742520400603,7.8139,128.06,128.03,38.95420131]
[1742520401102,7.8139,128.06,128.03,27.62]
[1742520401302,7.8139,128.06,128.03,35.4351]
[1742520401904,7.86842668,128.06,128.03,35.4351]
[1742520406002,7.8142,128.05,128.03,35.3951]
[1742520406206,0.05452668,128.06,128.03,35.3951]
[1742520406608,7.86822668,128.06,128.03,35.3951]
[1742520407905,0.05452668,128.06,128.03,35.3951]
[1742520408605,7.86822668,128.06,128.04,7.8145]
[1742520408805,7.86822668,128.06,128.03,27.58]
[1742520409005,0.05452668,128.06,128.03,27.58]
[1742520409213,7.86802668,128.06,128.03,27.58]
[1742520409402,0.05452668,128.06,128.03,27.58]
[1742520410111,7.86822668,128.06,128.03,35.3946]
[1742520410310,7.86822668,128.06,128.03,7.8146]
[1742520410512,7.86822668,128.06,128.03,35.3746]
[1742520411712,0.05452668,128.06,128.03,35.3746]
[1742520412215,7.86822668,128.06,128.03,35.3746]
[1742520415216,7.86822668,128.06,128.04,7.8145]
[1742520415515,0.05452668,128.06,128.04,7.8145]
[1742520419423,7.86792668,128.06,128.04,7.8145]
[1742520429433,0.05452668,128.06,128.04,7.8145]
[1742520431332,0.05452668,128.06,128.05,7.8139]
[1742520434438,0.05452668,128.06,128.04,7.8143]
[1742520437846,7.86792668,128.06,128.04,7.8143]
[1742520438241,0.05452668,128.06,128.02,27.54]
[1742520438643,0.05452668,128.06,128.01,42.96473479]
[1742520438938,7.8148,128.04,128.02,7.8154]
[1742520439737,7.8152,128.03,128.01,50.78083479]
[1742520440140,7.86592812,128.03,128.0,312.0989361]
[1742520440441,7.86592812,128.03,128.0,319.9154361]
[1742520440637,7.86592812,128.03,128.0,312.0989361]
[1742520441443,7.86592812,128.03,128.01,7.8164]
[1742520443436,7.86592812,128.03,128.01,19.15060131]
[1742520444246,7.86592812,128.03,128.01,11.33420131]
[1742520445239,7.8158,128.02,128.0,276.95080131]
[1742520445947,7.86622812,128.03,128.0,276.95080131]
[1742520446448,7.86622812,128.03,128.01,7.8162]
[1742520450551,7.86622812,128.03,128.0,276.95080131]
[1742520451551,7.86622812,128.03,128.01,7.8163]
[1742520453461,0.05072812,128.03,128.01,7.8163]
[1742520454056,7.86612812,128.03,128.01,7.8163]
[1742520454356,0.05072812,128.03,128.0,19.15080131]
[1742520454556,0.05072812,128.03,128.0,7.8166]
[1742520454860,11.38492943,128.03,127.99,7.8172]
[1742520455250,7.86612812,128.03,128.0,7.8165]
[1742520455445,7.86612812,128.03,127.99,11.33420131]
[1742520455851,7.86612812,128.03,128.0,7.8166]
[1742520456051,7.8158,128.02,128.0,7.8166]
[1742520457060,7.86622812,128.03,128.0,7.8166]
[1742520457463,0.05072812,128.03,128.0,7.8166]
[1742520457758,7.8161,128.02,127.99,19.15140131]
[1742520459053,7.8161,128.02,128.0,7.8169]
[1742520460160,7.86622812,128.03,128.0,7.8169]
[1742520460855,7.86622812,128.03,128.01,7.8164]
[1742520461855,0.05072812,128.03,128.0,19.15080131]
[1742520462261,7.86632812,128.03,128.0,19.15080131]
[1742520462560,7.86632812,128.03,128.01,7.8164]
[1742520467366,0.05072812,128.03,128.01,7.8164]
[1742520468260,0.05072812,128.03,128.02,19.15000131]
[1742520484868,2.812e-05,128.03,128.02,19.15000131]
[1742520485182,27.54,128.08,128.07,7.8127]
[1742520485968,27.54,128.08,128.06,7.8131]
[1742520486376,0.05342113,128.08,128.06,0.05376499]
[1742520487375,7.8127,128.07,128.06,0.05376499]
[1742520490178,7.86572113,128.08,128.06,7.86706499]
[1742520491280,7.86572113,128.08,128.06,0.05376499]
[1742520493374,0.05342113,128.08,128.06,7.86706499]
[1742520493773,0.05342113,128.08,128.06,0.05376499]
[1742520494079,0.05342113,128.08,128.07,7.8127]
[1742520494276,7.86552113,128.08,128.06,0.05376499]
[1742520495384,0.05342113,128.08,128.06,0.05376499]
[1742520496878,0.05342113,128.08,128.06,7.86686499]
[1742520497087,0.05342113,128.08,128.06,0.05376499]
[1742520497981,0.05342113,128.08,128.07,7.8127]
[1742520500583,0.05342113,128.08,128.06,0.05376499]
[1742520500984,7.86582113,128.08,128.06,0.05376499]
[1742520501283,0.05342113,128.08,128.06,0.05376499]
[1742520503280,0.05342113,128.08,128.06,11.3879663]
[1742520503472,0.05342113,128.08,128.07,11.33420131]
[1742520503675,0.05342113,128.08,128.07,19.14690131]
[1742520504282,11.33420131,128.19,128.13,7.8091]
[1742520504479,6.3072,128.18,128.13,19.14330131]
[1742520504782,11.33420131,128.16,128.11,19.14410131]
[1742520505499,27.59872339,128.15,128.12,0.05185742]
[1742520505681,35.40692339,128.15,128.12,0.05185742]
[1742520509684,35.40692339,128.15,128.12,11.38605873]
[1742520510885,7.8085,128.14,128.12,11.38605873]
[1742520511381,27.59872339,128.15,128.12,11.38605873]
[1742520511685,35.40682339,128.15,128.12,11.38605873]
[1742520512181,7.8085,128.14,128.12,11.38605873]
[1742520514183,7.8085,128.14,128.12,19.19565873]
[1742520514988,35.40682339,128.15,128.12,19.19565873]
[1742520517088,7.8086,128.14,128.12,11.38605873]
[1742520517287,27.59872339,128.15,128.12,11.38605873]
[1742520517787,35.40692339,128.15,128.12,19.19575873]
[1742520517985,27.59872339,128.15,128.13,11.33420131]
[1742520518987,27.59872339,128.15,128.13,19.14290131]
[1742520519790,0.05872339,128.15,128.14,19.14260131]
[1742520523205,0.05872339,128.15,128.14,11.33420131]
[1742520524000,0.05872339,128.15,128.14,19.14260131]
[1742520529510,0.05872339,128.15,128.14,11.33420131]
[1742520529708,7.86652339,128.15,128.14,11.33420131]
[1742520531209,7.86652339,128.15,128.13,11.33420131]
[1742520531711,7.86652339,128.15,128.13,19.14320131]
[1742520531912,0.05872339,128.15,128.14,11.33420131]
[1742520532207,0.05872339,128.15,128.14,19.14260131]
[1742520532703,0.05872339,128.15,128.14,46.66260131]
[1742520535112,7.8057,128.19,128.17,7.8065]
[1742520535313,7.8057,128.19,128.17,19.14070131]
[1742520535513,7.8057,128.19,128.17,11.33420131]
[1742520535715,7.806,128.18,128.17,11.33420131]
[1742520536515,7.806,128.18,128.16,19.19986137]
[1742520538617,7.806,128.18,128.16,11.39296137]
[1742520539317,7.806,128.18,128.16,19.20016137]
[1742520545213,7.85595106,128.19,128.16,19.20016137]
[1742520546026,7.85595106,128.19,128.17,7.8066]
[1742520546227,0.05025106,128.19,128.17,11.33420131]
[1742520547222,0.05025106,128.19,128.18,11.33420131]
[1742520547223,7.85575106,128.19,128.18,11.33420131]
[1742520551833,7.85575106,128.19,128.17,19.14060131]
[1742520554538,7.806,128.18,128.17,11.33420131]
[1742520554725,7.806,128.18,128.16,19.19986137]
[1742520555838,7.8066,128.17,128.16,11.39296137]
[1742520556138,7.8066,128.17,128.16,0.05876006]
[1742520557331,7.8078,128.15,128.14,11.33420131]
[1742520558233,7.8075,128.16,128.14,11.33420131]
[1742520558537,7.86255847,128.16,128.15,11.33420131]
[1742520561740,7.808,128.15,128.14,11.33420131]
[1742520565546,7.86265847,128.16,128.14,11.33420131]
[1742520565741,7.86265847,128.16,128.15,11.33420131]
[1742520570053,7.86265847,128.16,128.14,11.33420131]
[1742520570248,7.8078,128.15,128.14,11.33420131]
[1742520572058,7.86245847,128.16,128.14,19.14260131]
[1742520572255,7.86245847,128.16,128.14,11.33420131]
[1742520572857,7.8078,128.15,128.14,11.33420131]
[1742520577862,7.8084,128.14,128.13,0.05134941]
[1742520580358,9.8502,128.14,128.13,0.05134941]
[1742520583167,7.8084,128.14,128.13,0.05134941]
[1742520583465,35.3082,128.15,128.13,11.38555072]
[1742520583857,7.8082,128.15,128.13,11.38555072]
[1742520585562,7.8084,128.14,128.13,11.38555072]
[1742520585764,7.8084,128.14,128.13,0.05134941]
[1742520587067,7.8082,128.15,128.13,0.05134941]
[1742520587665,0.05505847,128.16,128.13,0.05134941]
[1742520587666,7.8084,128.14,128.13,0.05134941]
[1742520593182,35.3084,128.14,128.13,0.05134941]
[1742520593570,7.8108,128.11,128.09,11.33420131]
[1742520594073,11.33420131,128.13,128.08,11.33420131]
[1742520594673,7.8112,128.1,128.09,0.05656781]
[1742520600278,35.3105,128.11,128.09,0.05656781]
[1742520601581,35.3105,128.11,128.09,11.39076912]
[1742520605373,35.3105,128.11,128.09,19.20216912]
[1742520606482,35.3105,128.11,128.09,11.39076912]
[1742520609085,7.8109,128.1,128.09,11.39076912]
[1742520609381,7.8109,128.1,128.09,0.05656781]
[1742520609582,27.5,128.11,128.09,11.39076912]
[1742520609883,27.5,128.11,128.09,19.20196912]
[1742520610283,35.3104,128.11,128.09,19.20196912]
[1742520612292,0.05947868,128.12,128.1,11.33420131]
[1742520612479,0.05947868,128.12,128.11,11.33420131]
[1742520613589,0.05947868,128.12,128.11,19.14450131]
[1742520615281,37.4876,128.16,128.11,11.33420131]
[1742520615485,37.4876,128.16,128.14,11.33420131]
[1742520615685,35.3275,128.16,128.14,11.33420131]
[1742520615886,7.8075,128.16,128.14,11.33420131]
[1742520616483,7.86442076,128.16,128.14,11.39269831]
[1742520617088,7.8078,128.15,128.14,11.39269831]
[1742520617490,7.8078,128.15,128.14,0.058497]
[1742520619381,7.8078,128.15,128.14,11.39269831]
[1742520620794,0.05692076,128.16,128.14,11.39269831]
[1742520620985,0.05692076,128.16,128.15,11.33420131]
[1742520622496,27.5,128.21,128.15,38.83420131]
[1742520622788,27.5,128.23,128.2,11.33420131]
[1742520623389,7.8039,128.22,128.2,11.33420131]
[1742520623591,7.8039,128.22,128.2,11.39226449]
[1742520623783,0.05948812,128.23,128.2,11.39226449]
[1742520624184,7.8036,128.22,128.2,11.39226449]
[1742520624589,27.55948812,128.23,128.2,11.39226449]
[1742520624894,7.8042,128.21,128.2,11.39226449]
[1742520626892,7.8042,128.21,128.2,0.05806318]
[1742520640710,11.33420131,128.21,128.16,11.33420131]
[1742520641002,38.83420131,128.2,128.15,38.83420131]
[1742520641198,7.8072,128.16,128.15,11.33420131]
[1742520644906,7.8078,128.15,128.14,11.38509461]
[1742520645210,7.8078,128.15,128.14,0.0508933]
[1742520645814,7.8096,128.13,128.11,11.33420131]
[1742520646411,7.8097,128.12,128.11,11.33420131]
[1742520646911,7.867607,128.13,128.11,11.33420131]
[1742520654622,7.8097,128.12,128.11,11.33420131]
[1742520655513,7.867507,128.13,128.11,11.33420131]
[1742520655721,0.058307,128.13,128.12,11.33420131]
[1742520656922,0.058307,128.13,128.12,19.14390131]
[1742520658329,0.058307,128.13,128.12,11.33420131]
[1742520659338,7.867407,128.13,128.12,11.33420131]
[1742520660221,7.8097,128.12,128.11,11.33420131]
[1742520662433,7.867607,128.13,128.11,11.33420131]
[1742520663238,35.367607,128.13,128.11,11.33420131]
[1742520663933,0.058307,128.13,128.12,11.33420131]
[1742520664637,0.058307,128.13,128.12,19.14390131]
[1742520667641,0.058307,128.13,128.12,19.14390131]
[1742520670940,0.058307,128.13,128.1,0.05478952]
[1742520671135,27.5,128.12,128.1,0.05478952]
[1742520671844,7.8103,128.11,128.1,0.05478952]
[1742520678745,46.64420131,128.12,128.1,0.05478952]
[1742520679046,35.31,128.12,128.1,0.05478952]
[1742520679643,27.5,128.12,128.1,0.05478952]
[1742520680245,27.5,128.12,128.1,7.86538952]
[1742520682544,27.5,128.12,128.11,7.8103]
[1742520682847,0.058307,128.13,128.11,11.33420131]
[1742520683046,0.058307,128.13,128.1,27.55478952]
[1742520683047,0.058307,128.13,128.12,11.33420131]
[1742520684442,0.058307,128.13,128.12,19.14390131]
[1742520685750,0.058307,128.13,128.12,19.14390131]
[1742520685948,0.058307,128.13,128.12,7.8097]
[1742520687553,0.058307,128.13,128.12,19.14390131]
[1742520695858,0.058307,128.13,128.12,11.33420131]
[1742520696050,0.058307,128.13,128.11,11.33420131]
[1742520696250,0.058307,128.13,128.1,11.38899083]
[1742520696455,0.058307,128.13,128.1,0.05478952]
[1742520696656,7.8102,128.12,128.1,0.05478952]
[1742520698860,7.8103,128.11,128.1,0.05478952]
[1742520699360,7.81,128.12,128.1,0.05478952]
[1742520700362,7.867707,128.13,128.1,0.05478952]
[1742520700756,0.058307,128.13,128.1,11.38899083]
[1742520700956,0.058307,128.13,128.12,11.33420131]
[1742520701360,0.058307,128.13,128.12,19.14390131]
[1742520706864,0.058307,128.13,128.12,46.64390131]
[1742520707259,6.1915,128.19,128.12,38.83420131]
[1742520707461,6.1915,128.19,128.16,7.8068]
[1742520707759,13.997,128.19,128.16,7.8068]
[1742520707959,13.997,128.19,128.17,7.8065]
[1742520708264,6.1915,128.19,128.17,7.8065]
[1742520708461,4.16571527,128.19,128.17,7.85590409]
[1742520708868,4.16571527,128.19,128.17,0.04940409]
[1742520709065,2.06931527,128.19,128.17,0.04940409]
[1742520709266,0.05441527,128.19,128.18,11.33420131]
[1742520709467,0.05441527,128.19,128.18,19.14020131]
[1742520709665,0.05441527,128.19,128.18,11.33420131]
[1742520711765,0.05441527,128.19,128.18,38.83420131]
[1742520712177,0.05441527,128.19,128.18,46.64020131]
[1742520712376,3.9644,128.23,128.18,38.83420131]
[1742520712575,3.9644,128.23,128.2,11.33420131]
[1742520712872,7.8039,128.22,128.2,11.33420131]
[1742520713475,7.8629072,128.22,128.2,11.38841972]
[1742520713672,7.8042,128.21,128.2,11.38841972]
[1742520713987,7.8042,128.21,128.2,0.05421841]
[1742520722579,35.3428072,128.22,128.2,0.05421841]
[1742520722776,27.5390072,128.22,128.2,11.38841972]
[1742520722979,27.48,128.26,128.21,11.33420131]
[1742520723278,27.48,128.26,128.22,11.33420131]
[1742520723681,13.32330131,128.27,128.22,11.33420131]
[1742520723881,1.9891,128.27,128.23,11.33420131]
[1742520724082,7.802,128.25,128.23,11.33420131]
[1742520724282,7.802,128.25,128.24,0.05596701]
[1742520724975,0.05658964,128.26,128.24,0.05596701]
[1742520724976,7.85798964,128.26,128.24,0.05596701]
[1742520725378,7.8017,128.25,128.24,0.05596701]
[1742520725784,0.05658964,128.26,128.24,11.39016832]
[1742520725986,7.85798964,128.26,128.24,11.39016832]
[1742520726593,7.8017,128.25,128.24,11.39016832]
[1742520727492,7.85798964,128.26,128.24,11.39016832]
[1742520729702,7.85798964,128.26,128.24,19.19246832]
[1742520730502,7.85798964,128.26,128.24,11.39016832]
[1742520730901,7.8017,128.25,128.24,11.39016832]
[1742520731096,7.8017,128.25,128.24,0.05596701]
[1742520733197,0.05658964,128.26,128.24,0.05596701]
[1742520733400,0.05658964,128.26,128.25,11.33420131]
[1742520733601,0.05658964,128.26,128.25,38.81420131]
[1742520734300,0.05658964,128.26,128.25,46.61590131]
[1742520735498,0.05658964,128.26,128.25,38.81420131]
[1742520736099,0.05658964,128.26,128.25,27.48]
[1742520736404,0.05658964,128.26,128.24,0.05596701]
[1742520737106,46.61590131,128.25,128.24,0.05596701]
[1742520737298,40.83910131,128.25,128.2,296.33420131]
[1742520737695,40.83910131,128.25,128.2,268.85420131]
[1742520737895,11.33420131,128.24,128.2,257.52]
[1742520738396,29.5049,128.25,128.2,257.52]
[1742520738397,0.05340121,128.23,128.21,0.05799034]
[1742520739303,7.85660121,128.23,128.21,0.05799034]
[1742520739998,0.05340121,128.23,128.21,0.05799034]
[1742520740905,0.05340121,128.23,128.22,11.33420131]
[1742520741307,0.05340121,128.23,128.22,19.13780131]
[1742520742304,0.02367164,128.23,128.22,46.61780131]
[1742520742506,31.6355,128.29,128.25,7.8014]
[1742520742703,7.8003,128.28,128.25,19.13560131]
[1742520743503,7.85480807,128.28,128.25,19.13560131]
[1742520743707,7.8006,128.27,128.25,0.05420283]
[1742520744503,7.8006,128.27,128.25,7.85590283]
[1742520744704,7.85440807,128.28,128.25,7.85590283]
[1742520744909,7.85440807,128.28,128.25,0.05420283]
[1742520745811,7.85440807,128.28,128.25,7.85590283]
[1742520746012,7.85440807,128.28,128.25,0.05420283]
[1742520746210,7.8006,128.27,128.25,0.05420283]
[1742520749108,0.05450807,128.28,128.25,11.38840414]
[1742520750017,7.85450807,128.28,128.25,19.18980414]
[1742520750315,0.05450807,128.28,128.25,11.38840414]
[1742520751713,7.8006,128.27,128.25,0.05420283]
[1742520751914,0.05450807,128.28,128.25,0.05420283]
[1742520752110,13.48420938,128.28,128.25,0.05420283]
[1742520752614,7.8011,128.26,128.25,0.05420283]
[1742520752814,35.2811,128.26,128.25,0.05420283]
[1742520754815,29.63000807,128.28,128.25,7.85570283]
[1742520755119,29.63000807,128.28,128.25,19.18990414]
[1742520755319,37.43030807,128.28,128.25,19.18990414]
[1742520756419,7.8006,128.27,128.25,19.18990414]
[1742520756914,29.63000807,128.28,128.25,19.18990414]
[1742520757218,37.43030807,128.28,128.25,19.18990414]
[1742520761116,37.43030807,128.28,128.25,11.38840414]
[1742520761322,37.43030807,128.28,128.26,7.8011]
[1742520761520,29.63000807,128.28,128.26,7.8011]
[1742520761724,27.53450807,128.28,128.25,11.38840414]
[1742520762025,27.53450807,128.28,128.26,7.8011]
[1742520762728,0.05450807,128.28,128.26,7.8011]
[1742520763624,0.05450807,128.28,128.27,7.8005]
[1742520765817,0.05450807,128.28,128.26,7.8008]
[1742520766022,0.05450807,128.28,128.26,19.13500131]
[1742520768328,7.85460807,128.28,128.26,19.13500131]
[1742520769128,0.05450807,128.28,128.26,19.13500131]
[1742520770233,0.05450807,128.28,128.25,27.53420283]
[1742520770529,11.38870938,128.28,128.25,0.05420283]
[1742520770833,7.8011,128.26,128.25,0.05420283]
[1742520778228,35.2809,128.27,128.25,0.05420283]
[1742520779636,7.85470807,128.28,128.25,19.19000414]
[1742520779838,0.05450807,128.28,128.27,11.33420131]
[1742520781041,7.85480807,128.28,128.26,11.33420131]
[1742520785645,7.85480807,128.28,128.26,19.13530131]
[1742520786838,0.05450807,128.28,128.27,7.8005]
[1742520787745,0.05450807,128.28,128.27,19.13470131]
[1742520788648,29.6398,128.33,128.27,11.33420131]
[1742520788944,33.31199774,128.36,128.32,11.33420131]
[1742520789648,0.04986098,128.35,128.33,0.05199513]
[1742520790048,19.13050131,128.34,128.33,0.05199513]
[1742520790249,19.13050131,128.34,128.29,11.33420131]
[1742520790250,11.33420131,128.34,128.29,11.33420131]
[1742520790934,7.7982,128.31,128.29,11.33420131]
[1742520791234,7.85144249,128.31,128.29,11.38678304]
[1742520792448,7.85144249,128.31,128.3,11.33420131]
[1742520792648,0.05324249,128.31,128.3,11.33420131]
[1742520793741,0.05324249,128.31,128.3,19.13290131]
[1742520794544,7.796,128.35,128.3,19.13290131]
[1742520794545,7.796,128.35,128.3,11.33420131]
[1742520794741,7.7954,128.36,128.33,11.33420131]